Cogmind - Beta 14 @@@ ROGUE MODE // 2024.08.29 @ 18:23:10 Player: J1ang-5h1 Result: Destroyed by S-27 Virus with Autogun Performance ------------- Evolutions (3) 1500 Regions Visited (11) 2200 Robots Destroyed (64) 320 Value Destroyed (1960) 1960 Prototype IDs (41) 820 Alien Tech Used (0) 0 Bonus (420) 420 TOTAL SCORE: 7220 Bonus ------- High Alert Combat Kills 100 Follower Combat Kills 25 Aligned with FarCom 300 Met Data Miner 300 Friendly Fire -305 Cogmind --------- Core Integrity 0/700 Matter 139/300 Energy 100/100 System Corruption 1% Temperature Cool (0) Movement Core (1350) Ox26 Location -6/Proximity Caves Parts ------- > --- POWER (2) -------- (None) > --- PROPULSION (5) --- (None) > --- UTILITY (2) ------ Huge Storage Unit > --- WEAPON (4) ------- (None) > --- INVENTORY (25) --- Potential Leg Potential Leg Structural Scanner Trap Scanner Improved Terrain Scanner Melee Analysis Suite Improved Melee Analysis Suite Kinecellerator Microactuators Microactuators Reaction Control System Reflective Plating Reflective Plating Reflective Plating Insulated Plating Shock Absorption System Dynamic Insulation System System Restoration Module Decoy Drone Bay Peak State ------------ > --- POWER ------------ Improved Deuterium Engine Micro Fission Core > --- PROPULSION ------- Aluminum Leg Potential Leg Potential Leg Armored Huge Wheel > --- UTILITY ---------- Huge Storage Unit System Restoration Module > --- WEAPON ----------- Enhanced Gauss Cannon Enhanced Gauss Cannon Greatsword > --- INVENTORY -------- Structural Scanner Trap Scanner Improved Terrain Scanner Melee Analysis Suite Improved Melee Analysis Suite Kinecellerator Microactuators Microactuators Reaction Control System Reflective Plating Reflective Plating Reflective Plating Reflective Plating Insulated Plating Shock Absorption System Dynamic Insulation System System Restoration Module Decoy Drone Bay Coil Gun Coil Gun Hypervelocity Coil Gun Proton Missile Launcher Greatsword [Rating: 73] Favorites ----------- Power Micro Fission Core Engine Improved Deuterium Engine Power Core Micro Fission Core Propulsion Potential Leg Treads Light Treads Leg Potential Leg Wheel Armored Huge Wheel Flight Unit Improved Flight Unit Utility Huge Storage Unit Device Improved Terrain Scanner Storage Huge Storage Unit Protection Improved Light Armor Plating Weapon Coil Gun Energy Cannon Light EM Pulse Cannon Ballistic Gun Coil Gun Ballistic Cannon Enhanced Gauss Cannon Launcher Proton Missile Launcher Special Weapon Mining Laser Impact Weapon Heavy Hammer Slashing Weapon Greatsword Build | -11 -10 -9 -9 -9 -8 -8 -7 -7 -7 -7 -6 ------- Run | Yrd Mat Mat Min Exi Min Mat Fac Low Low Dat Pro Slots Evolved 6 | . . 2 . . . 2 2 . . . . Power 1 | . . . . . . 1 . . . . . Propulsion 3 | . . 2 . . . 1 . . . . . Utility . | . . . . . . . . . . . . Weapon 2 | . . . . . . . 2 . . . . Parts Attached 98 | 1 23 14 3 . 2 20 16 . 7 2 10 Power 16 | . 5 1 . . 1 5 3 . 1 . . Engine 9 | . 5 1 . . 1 1 1 . . . . Core 7 | . . . . . . 4 2 . 1 . . Reactor . | . . . . . . . . . . . . Propulsion 18 | . 7 4 . . . 5 1 . . . 1 Treads 5 | . 5 . . . . . . . . . . Leg 4 | . . . . . . 4 . . . . . Wheel 5 | . 2 . . . . 1 1 . . . 1 Hover . | . . . . . . . . . . . . Flight 4 | . . 4 . . . . . . . . . Utility 36 | 1 7 4 1 . 1 3 9 . 6 . 4 Device 15 | 1 1 3 . . 1 2 3 . 3 . 1 Storage 4 | . 2 1 . . . . 1 . . . . Processor . | . . . . . . . . . . . . Hackware . | . . . . . . . . . . . . Protection 17 | . 4 . 1 . . 1 5 . 3 . 3 Artifact . | . . . . . . . . . . . . Weapon 28 | . 4 5 2 . . 7 3 . . 2 5 Energy Gun . | . . . . . . . . . . . . Energy Cannon 6 | . . 3 1 . . 2 . . . . . Ballistic Gun 8 | . 3 2 . . . . . . . . 3 Ballistic Cannon 4 | . . . . . . . 2 . . 2 . Launcher 2 | . . . . . . 1 . . . . 1 Special Weapon 4 | . 1 . 1 . . 2 . . . . . Impact Weapon 1 | . . . . . . 1 . . . . . Slashing Weapon 3 | . . . . . . 1 1 . . . 1 Piercing Weapon . | . . . . . . . . . . . . Special Melee Weapon . | . . . . . . . . . . . . Unidentified Prototypes . | . . . . . . . . . . . . Parts Lost 27 | . 1 . . . . 11 . . . . 15 Power 4 | . . . . . . 2 . . . . 2 Propulsion 10 | . 1 . . . . 6 . . . . 3 Utility 3 | . . . . . . 1 . . . . 2 Weapon 10 | . . . . . . 2 . . . . 8 Highest Loss Streak 7 | . 1 . . . . 3 . . . . 7 To Critical Strikes . | . . . . . . . . . . . . Average Slot Usage (%) 75 | . 97 85 88 88 88 58 71 84 84 70 60 Engine 5 | . 14 11 11 11 11 4 . 7 7 7 . Core 6 | . . . . . . 4 14 7 7 7 6 Treads 3 | . 15 . . . . . . . . . . Leg 14 | . 7 . . . . 5 23 23 23 23 14 Wheel 2 | . 3 . . . . 1 . 7 7 7 . Flight 3 | . . 44 44 44 44 19 . . . . . Device 3 | . 3 6 . . 4 4 3 . 3 . 5 Storage 8 | . 14 11 11 11 11 9 7 7 7 7 7 Protection 4 | . 10 . 11 11 6 . 3 7 3 7 . Ballistic Gun 12 | . 26 6 . . . . . . . . 21 Ballistic Cannon 3 | . . . . . . . 3 15 15 1 . Slashing Weapon 3 | . . . . . . 1 13 7 7 7 . Peak Build Rating 73 | 7 9 20 20 20 22 40 70 70 73 72 72 Average Rating 41 | 6 8 17 18 18 21 21 56 69 71 60 52 On Entrance 35 | 6 7 8 18 18 20 22 40 70 70 72 72 Naked Turns . | . . . . . . . . . . . . Heaviest Build 122 | 13 29 29 20 17 19 28 122 122 122 121 122 Greatest Support 70 | 20 40 20 20 20 20 70 70 28 28 28 60 Greatest Overweight (x) 33 | . 7 1 . . . 4 4 4 4 4 33 Average Overweight (x) 2 | . . . . . . . 1 4 4 3 25 Largest Inventory Capacity 25 | 8 15 15 10 10 10 10 25 25 25 25 25 Average Capacity 20 | 8 11 12 10 10 10 10 24 25 25 25 25 Most Carried 25 | 8 15 14 10 10 10 10 25 25 25 25 25 Average Carried 18 | 6 11 11 9 9 10 8 21 24 24 25 21 Final Capacity 25 | 8 15 10 10 10 10 10 25 25 25 25 25 Final Carried 25 | 7 15 10 10 10 10 10 25 25 25 25 20 Class Distribution -------------------- 60% | Mutant 24% | Skirmisher 4% | Sprinter 4% | Scavenger-Assassin 3% | Assassin Dominant Class ---------------- Mutant | -10/Materials Sprinter | -9/Materials Sprinter | -9/Mines Sprinter | -9/Exiles Sprinter | -8/Mines Mutant | -8/Materials Mutant | -7/Factory Mutant | -7/Lower Caves Mutant | -7/Lower Caves Mutant | -7/Data Miner Skirmisher | -6/Proximity Caves Resources | -11 -10 -9 -9 -9 -8 -8 -7 -7 -7 -7 -6 ----------- Run | Yrd Mat Mat Min Exi Min Mat Fac Low Low Dat Pro Matter Collected 1913 | 230 673 . 34 136 10 185 192 160 99 . 194 Remotely . | . . . . . . . . . . . . Salvage Created 2557 | 93 836 . 54 . . 538 527 339 35 . 135 Parts 111 | 4 45 . 3 . . 27 19 11 1 . 1 Haulers Intercepted 2 | . 2 . . . . . . . . . . Recyclers Shooed 1 | . 1 . . . . . . . . . . Parts Field Recycled . | . . . . . . . . . . . . Retrieved Matter . | . . . . . . . . . . . . Parts Self-Destructed 26 | . . . . . . . . 23 2 . 1 Prevented 1 | . . . . . . . . . 1 . . Kills | -11 -10 -9 -9 -9 -8 -8 -7 -7 -7 -7 -6 ------- Run | Yrd Mat Mat Min Exi Min Mat Fac Low Low Dat Pro Combat Hostiles Destroyed 44 | . 16 . 3 . . 12 4 4 2 . 3 Melee 11 | . . . . . . 2 4 4 . . 1 Guns 18 | . 16 . . . . . . . . . 2 Cannons 5 | . . . 3 . . . . . 2 . . AOE 3 | . . . . . . 3 . . . . . Classes Destroyed 14 | 2 5 . . . . 3 2 2 . . . Worker 5 | . 1 . . . . 1 3 . . . . Tunneler 2 | 1 . . . . . . 1 . . . . Hauler 2 | . 2 . . . . . . . . . . Recycler 5 | 1 1 . . . . . 3 . . . . Operator 1 | . . . . . . 1 . . . . . Watcher 4 | . 2 . . . . 1 1 . . . . Swarmer 6 | . 3 . 3 . . . . . . . . Cutter 2 | . . . . . . 2 . . . . . Grunt 25 | . 13 . . . . 7 . 2 . . 3 Duelist 1 | . . . . . . . . 1 . . . Sentry 4 | . . . . . . 3 1 . . . . Hunter 3 | . . . . . . . 1 1 1 . . Programmer 3 | . . . . . . . 2 . 1 . . Ranger 1 | . . . . . . . . 1 . . . Best Kill Streak 5 | 2 3 . 2 . . 5 5 3 1 . 1 Combat Bots Only 5 | . 3 . 2 . . 5 1 3 1 . 1 Max Kills in Single Turn 2 | 1 1 . 1 . . 2 1 1 1 . 1 Gunslinging . | . . . . . . . . . . . . Exploded 1 | . . . . . . 1 . . . . . Melee 1 | . . . . . . 1 1 1 . . 1 Uniques/NPCs Destroyed . | . . . . . . . . . . . . Combat | -11 -10 -9 -9 -9 -8 -8 -7 -7 -7 -7 -6 -------- Run | Yrd Mat Mat Min Exi Min Mat Fac Low Low Dat Pro Hostile Shots Fired 522 | . 109 . 37 . 13 115 24 21 7 . 196 Missed 130 | . 29 . 13 . 8 37 6 3 2 . 32 Damage Taken 6101 | . 938 . 201 . 47 1312 309 240 65 . 2989 Core 1356 | . 174 . 39 . 12 424 60 13 11 . 623 Absorbed by Shields . | . . . . . . . . . . . . Ignored by Resistances 88 | . . . . . . . . . . . 88 Regen/Repaired (Parts) 169 | . 169 . . . . . . . . . . Core Remaining (%) 59 | 100 30 . . . 87 22 . . . . . Volleys Fired 186 | 10 106 . 18 . . 13 3 8 5 . 23 Largest 3 | 2 2 . 1 . . 1 2 2 2 . 3 Hottest 117 | 40 100 . 100 . . 100 114 114 114 . 117 Shots Fired 340 | 20 206 . 18 . . 13 6 16 10 . 51 Gun 256 | 20 204 . . . . . . . . . 32 Cannon 62 | . . . 11 . . 3 6 16 10 . 16 Launcher 6 | . . . . . . 3 . . . . 3 Special 16 | . 2 . 7 . . 7 . . . . . Kinetic 304 | 20 204 . . . . . 6 16 10 . 48 Thermal 16 | . 2 . 7 . . 7 . . . . . Explosive 3 | . . . . . . 3 . . . . . Electromagnetic 17 | . . . 11 . . 3 . . . . 3 Robot Hit Streak 13 | 8 13 . 11 . . 2 4 5 4 . 3 Robot Miss Streak 8 | 3 3 . 3 . . 2 . 4 2 . 8 Penetration Max . | . . . . . . . . . . . . Secondary Targets 3 | . 3 . . . . . . . . . . Max Gunslinging Chain 1 | . 1 . . . . . . . . . . Shots Hit Robots 256 | 13 141 . 8 . . 26 25 18 6 . 19 Core Hits 98 | 4 51 . 3 . . 14 7 8 3 . 8 Critical Kills . | . . . . . . . . . . . . Critical Parts Destroyed 3 | . 1 . . . . 1 . . . . 1 Critical Strikes 6 | . 1 . . . . 1 1 1 . . 2 Destroy 2 | . 1 . . . . . . . . . 1 Blast 2 | . . . . . . . . 1 . . 1 Smash 1 | . . . . . . 1 . . . . . Sever 1 | . . . . . . . 1 . . . . Melee Attacks 96 | . . . . . . 29 48 14 . . 5 Impact 29 | . . . . . . 29 . . . . . Slashing 67 | . . . . . . . 48 14 . . 5 Piercing . | . . . . . . . . . . . . Sneak Attacks 11 | . . . . . . . 9 2 . . . Combat Hostiles . | . . . . . . . . . . . . Follow-up Attacks 4 | . . . . . . . 4 . . . . Damage Inflicted 6431 | 105 1277 . 162 . . 1563 1690 824 173 . 637 Guns 1641 | 105 1277 . . . . . . . . . 259 Cannons 864 | . . . 162 . . 54 49 198 173 . 228 Explosions 685 | . . . . . . 653 . . . . 32 Melee 3241 | . . . . . . 856 1641 626 . . 118 Ramming . | . . . . . . . . . . . . Kinetic 2289 | 105 1277 . . . . . 49 198 173 . 487 Thermal 378 | . . . . . . 378 . . . . . Explosive 155 | . . . . . . 155 . . . . . Electromagnetic 368 | . . . 162 . . 174 . . . . 32 Impact 856 | . . . . . . 856 . . . . . Slashing 2385 | . . . . . . . 1641 626 . . 118 Piercing . | . . . . . . . . . . . . Highest Corruption 1 | . 1 . . . . 1 1 1 1 1 1 Average Corruption 1 | . 1 . . . . 1 1 1 1 1 1 Corruption Purged 1 | . . . . . . . . . 1 . . Corruption Blocked . | . . . . . . . . . . . . Effects 47 | . 14 . . . . 4 5 5 1 . 18 Message Errors 8 | . 1 . . . . 1 1 . . . 5 Matter Fused 6 | . . . . . . . 2 2 1 . 1 Heat Flow Errors 2 | . . . . . . 1 . . . . 1 Energy Discharges 10 | . 5 . . . . . 2 1 . . 2 Data Loss (minor) 12 | . 6 . . . . 1 . 2 . . 3 Data Loss (major) 2 | . 1 . . . . . . . . . 1 Misfires 4 | . . . . . . . . . . . 4 Alerts 3 | . 1 . . . . 1 . . . . 1 Overload Shots . | . . . . . . . . . . . . Overflow Damage 794 | . . . 4 . . 285 361 144 . . . Projectiles 5 | . . . 4 . . 1 . . . . . Explosions 143 | . . . . . . 143 . . . . . Melee 646 | . . . . . . 141 361 144 . . . Knockbacks 9 | . . . . . . 2 . 3 2 . 2 Impact 2 | . . . . . . 2 . . . . . Kinetic 7 | . . . . . . . . 3 2 . 2 Secondary . | . . . . . . . . . . . . Self-Inflicted Damage 78 | . . . . . . 53 . . . . 25 Shots 3 | . . . . . . 2 . . . . 1 Rammed . | . . . . . . . . . . . . Targets Rammed . | . . . . . . . . . . . . Kicked . | . . . . . . . . . . . . Crushed . | . . . . . . . . . . . . Highest Temperature 548 | . 141 . 224 . 1 211 120 240 252 . 548 Average Temperature 97 | . 30 . 72 . 1 38 53 97 109 . 253 Received Heat Transfer 2133 | . 501 . . . . 621 . 63 . . 948 Effects 13 | . . . . . . . . . . . 13 Shutdowns 5 | . . . . . . . . . . . 5 Interference 4 | . . . . . . . . . . . 4 Short Circuit 1 | . . . . . . . . . . . 1 Damage (minor) 3 | . . . . . . . . . . . 3 Siege Activations . | . . . . . . . . . . . . Robots Corrupted 7 | . . . . . . 7 . . . . . Combat Hostiles 7 | . . . . . . 7 . . . . . Parts Fried 7 | . . . 2 . . 5 . . . . . Impact Corruptions 9 | . . . . . . 9 . . . . . Robots Melted . | . . . . . . . . . . . . Combat Hostiles . | . . . . . . . . . . . . Parts Melted . | . . . . . . . . . . . . Heat Transferred 300 | . . . . . . 300 . . . . . Parts Sabotaged . | . . . . . . . . . . . . Parts Stolen . | . . . . . . . . . . . . Parts Stripped . | . . . . . . . . . . . . Power Chain Reactions . | . . . . . . . . . . . . Alert | -11 -10 -9 -9 -9 -8 -8 -7 -7 -7 -7 -6 ------- Run | Yrd Mat Mat Min Exi Min Mat Fac Low Low Dat Pro Peak Influence 615 | 10 254 97 177 . 75 615 276 . . . . Initial 202 | . 6 93 37 . . 29 202 . . . . Average 139 | 7 146 94 123 . 59 292 93 . . . . Maximum Alert Level 2 | . 1 . . . . 2 1 . . . . Low Security (%) 75 | 100 76 100 100 . 100 39 79 . . . . Level 1 18 | . 23 . . . . 12 20 . . . . Level 2 5 | . . . . . . 48 . . . . . Level 3 . | . . . . . . . . . . . . Level 4 . | . . . . . . . . . . . . Level 5 . | . . . . . . . . . . . . High Security . | . . . . . . . . . . . . Max Security . | . . . . . . . . . . . . Squads Dispatched 10 | . 4 . . . . 2 4 . . . . Investigation 4 | . 3 . . . . . 1 . . . . Extermination 2 | . . . . . . . 2 . . . . Reinforcement 4 | . 1 . . . . 2 1 . . . . Assault . | . . . . . . . . . . . . Garrison . | . . . . . . . . . . . . Intercept . | . . . . . . . . . . . . Searches Triggered . | . . . . . . . . . . . . Construction Impeded . | . . . . . . . . . . . . Haulers Reinforced 1 | . . . . . . . 1 . . . . Active Scanning Responses . | . . . . . . . . . . . . Cargo Convoy Interrupts 1 | . . . . . . . 1 . . . . Stealth | -11 -10 -9 -9 -9 -8 -8 -7 -7 -7 -7 -6 --------- Run | Yrd Mat Mat Min Exi Min Mat Fac Low Low Dat Pro Distress Signals 9 | . 3 1 . . . 3 2 . . . . Communications Jammed . | . . . . . . . . . . . . Distress Signals . | . . . . . . . . . . . . Times Spotted 97 | . 33 1 7 . 10 20 8 6 4 . 8 Peak Tracking Total 9 | . 4 2 3 . 4 9 3 3 6 . 5 Tactical Retreats 10 | . 4 . 1 . 2 2 1 . . . . Traps | -11 -10 -9 -9 -9 -8 -8 -7 -7 -7 -7 -6 ------- Run | Yrd Mat Mat Min Exi Min Mat Fac Low Low Dat Pro Traps Triggered 8 | . 5 1 . . . 1 1 . . . . Indirectly . | . . . . . . . . . . . . Trap Hack Attempts . | . . . . . . . . . . . . Triggered . | . . . . . . . . . . . . Disarmed . | . . . . . . . . . . . . Reprogrammed . | . . . . . . . . . . . . Reused . | . . . . . . . . . . . . Traps Extracted . | . . . . . . . . . . . . Installed . | . . . . . . . . . . . . Triggered 6 | . . . . . . . 3 1 2 . . Objects Rigged 6 | . . . . . . 6 . . . . . Exploded 4 | . . . . . . 4 . . . . . Machines | -11 -10 -9 -9 -9 -8 -8 -7 -7 -7 -7 -6 ---------- Run | Yrd Mat Mat Min Exi Min Mat Fac Low Low Dat Pro Machines Disabled 7 | . . . 1 . . 6 . . . . . Max in Single Turn 2 | . . . 1 . . 2 . . . . . Machines Repaired . | . . . . . . . . . . . . Machines Dismantled . | . . . . . . . . . . . . Machines Sabotaged . | . . . . . . . . . . . . Overloaded Fab Kills . | . . . . . . . . . . . . Hacking | -11 -10 -9 -9 -9 -8 -8 -7 -7 -7 -7 -6 --------- Run | Yrd Mat Mat Min Exi Min Mat Fac Low Low Dat Pro Machines Accessed 29 | . 8 3 1 2 . 5 6 . 1 3 . Terminals 17 | . 6 3 . . . 4 4 . . . . Fabricators 1 | . . . . . . . 1 . . . . Repair Stations 2 | . 1 . . . . . 1 . . . . Recycling Units 1 | . 1 . . . . . . . . . . Scanalyzers 1 | . . . . . . 1 . . . . . Garrison Access . | . . . . . . . . . . . . Total Hacks 97 | . 31 9 1 5 . 14 17 . 1 19 . Successful 65 | . 20 4 1 5 . 8 7 . 1 19 . Failed 32 | . 11 5 . . . 6 10 . . . . Catastrophic 6 | . 2 . . . . 2 2 . . . . Database Lockouts . | . . . . . . . . . . . . Manual 37 | . 15 8 . 1 . 8 5 . . . . Terminals 57 | . 24 9 . . . 12 12 . . . . Fabricators 1 | . . . . . . . 1 . . . . Repair Stations 9 | . 5 . . . . . 4 . . . . Recycling Units 2 | . 2 . . . . . . . . . . Scanalyzers 2 | . . . . . . 2 . . . . . Garrison Access . | . . . . . . . . . . . . Terminal Hacks 41 | . 7 1 1 5 . 2 5 . 1 19 . Record 7 | . . . . 4 . . . . . 3 . Part Schematic 8 | . . . . . . . . . . 8 . Robot Schematic 5 | . . . . . . . . . . 5 . Robot Analysis 3 | . 2 1 . . . . . . . . . Prototype ID Bank 7 | . 2 . . . . 2 . . . 3 . Open Door 2 | . . . 1 . . . . . 1 . . Terminal Index 1 | . . . . . . . 1 . . . . Alert Level 2 | . . . . . . . 2 . . . . Locate Traps 3 | . 1 . . . . . 2 . . . . Hauler Manifests 1 | . 1 . . . . . . . . . . Zone Layout 1 | . 1 . . . . . . . . . . Derelict Proto ID Bank 1 | . . . . 1 . . . . . . . Fabricator Hacks 1 | . . . . . . . 1 . . . . Build 1 | . . . . . . . 1 . . . . Repair Station Hacks 5 | . 4 . . . . . 1 . . . . Scan Component 3 | . 2 . . . . . 1 . . . . Repair 2 | . 2 . . . . . . . . . . Recycling Unit Hacks 1 | . 1 . . . . . . . . . . Report Inventory 1 | . 1 . . . . . . . . . . Scanalyzer 2 | . . . . . . 2 . . . . . Insert Component 1 | . . . . . . 1 . . . . . Analyze 1 | . . . . . . 1 . . . . . Garrison Access Hacks . | . . . . . . . . . . . . Unauthorized Hacks 15 | . 8 3 . . . 4 . . . . . Terminals 14 | . 7 3 . . . 4 . . . . . Botnet 5 | . 2 2 . . . 1 . . . . . Detonate 2 | . . . . . . 2 . . . . . Disrupt 1 | . . . . . . 1 . . . . . Skim 6 | . 5 1 . . . . . . . . . Fabricators . | . . . . . . . . . . . . Repair Stations . | . . . . . . . . . . . . Recycling Units 1 | . 1 . . . . . . . . . . Tunnel 1 | . 1 . . . . . . . . . . Scanalyzers . | . . . . . . . . . . . . Garrison Access . | . . . . . . . . . . . . Data Cores Recovered . | . . . . . . . . . . . . Used . | . . . . . . . . . . . . Hacking Detections 22 | . 8 3 . . . 5 6 . . . . Full Trace Events 1 | . . . . . . . 1 . . . . Feedback Events . | . . . . . . . . . . . . Feedback Blocked . | . . . . . . . . . . . . Robot Schematics Acquired 5 | . . . . . . . . . . 5 . Robots Built . | . . . . . . . . . . . . Authchips . | . . . . . . . . . . . . Time . | . . . . . . . . . . . . Total Robot Build Rating . | . . . . . . . . . . . . Part Schematics Acquired 9 | . . . . . . 1 . . . 8 . Parts Built 2 | . . . . . . . 2 . . . . Authchips . | . . . . . . . . . . . . Time 106 | . . . . . . . 106 . . . . Total Part Build Rating 12 | . . . . . . . 12 . . . . Parts Repaired 2 | . 2 . . . . . . . . . . Time 52 | . 52 . . . . . . . . . . Parts Recycled . | . . . . . . . . . . . . Recycled Matter . | . . . . . . . . . . . . Retrieved Matter . | . . . . . . . . . . . . Retrieved Components . | . . . . . . . . . . . . Parts Scanalyzed 1 | . . . . . . 1 . . . . . Part Schematics Acquired 1 | . . . . . . 1 . . . . . Parts Damaged . | . . . . . . . . . . . . Bothacking | -11 -10 -9 -9 -9 -8 -8 -7 -7 -7 -7 -6 ------------ Run | Yrd Mat Mat Min Exi Min Mat Fac Low Low Dat Pro Used RIF Installer . | . . . . . . . . . . . . Robots Hacked . | . . . . . . . . . . . . Non-combat . | . . . . . . . . . . . . Combat . | . . . . . . . . . . . . Robot Hacks Applied . | . . . . . . . . . . . . Relay Couplers Released . | . . . . . . . . . . . . Fabnet Peak Effective % . | . . . . . . . . . . . . Robots Rewired . | . . . . . . . . . . . . Allies Hacked . | . . . . . . . . . . . . Hacks Repelled . | . . . . . . . . . . . . Allies | -11 -10 -9 -9 -9 -8 -8 -7 -7 -7 -7 -6 -------- Run | Yrd Mat Mat Min Exi Min Mat Fac Low Low Dat Pro Total Allies 3 | . . . 2 . . . . . . . 1 Largest Group 2 | . . . 2 . . . . . . . 1 Highest-Rated Group 96 | . . . 41 . . . . . . . 96 Highest-Rated Ally 96 | . . . 31 . . . . . . . 96 Total Orders . | . . . . . . . . . . . . Ally Attacks 20 | . . . 14 . . . . . . . 6 Total Damage 424 | . . . 127 . . . . . . . 297 Kills 2 | . . . 2 . . . . . . . . Allies Corrupted . | . . . . . . . . . . . . Allies Melted . | . . . . . . . . . . . . Intel | -11 -10 -9 -9 -9 -8 -8 -7 -7 -7 -7 -6 ------- Run | Yrd Mat Mat Min Exi Min Mat Fac Low Low Dat Pro Robot Analysis Total 3 | . 2 1 . . . . . . . . . Derelict Logs Recovered 2 | . . . 1 . . . . 1 . . . Drone Launches . | . . . . . . . . . . . . Drone Recoveries . | . . . . . . . . . . . . Exploration | -11 -10 -9 -9 -9 -8 -8 -7 -7 -7 -7 -6 ------------- Run | Yrd Mat Mat Min Exi Min Mat Fac Low Low Dat Pro Turns Passed 9567 | 56 2164 161 162 72 91 630 1931 522 839 155 2784 Spaces Moved 4809 | 23 1024 299 269 223 276 701 910 274 507 104 199 Core 184 | . 8 . . . . 23 . . . . 153 Treads 631 | . 631 . . . . . . . . . . Legs 1410 | 23 380 . . . . 119 856 . . . 32 Wheels 1016 | . 5 . . . . 58 54 274 507 104 14 Hover . | . . . . . . . . . . . . Flight 1568 | . . 299 269 223 276 501 . . . . . Fastest Speed 31 | 120 110 31 31 31 31 31 100 160 160 145 160 Average Speed 168 | 120 162 44 31 31 31 58 169 160 160 145 1340 Slowest Speed 1700 | 120 400 101 31 31 31 250 176 160 160 160 1700 Overloaded Moves . | . . . . . . . . . . . . Propulsion Burnouts . | . . . . . . . . . . . . Robots Hopped 7 | . . . 3 . 1 3 . . . . . Cave-ins Triggered . | . . . . . . . . . . . . Exploration Rate (%) 45 | 2 96 28 44 59 63 40 19 35 69 71 23 Regions Visited 11 Branch Regions 7 Pre-discovered Areas 6 | . 3 . 1 1 . . . . . 1 . Known Exits Taken 2 | . . . 1 . 1 . . . . . . Unknown Exits Taken 9 | 1 1 1 . 1 . 1 1 1 1 1 . Scrap Searched 1 | . . . . . 1 . . . . . . Spaces Dug 49 | . 2 . 7 . . 15 25 . . . . Terrain Destroyed 189 | . 2 . 7 . . 114 25 12 5 . 24 Melee 19 | . . . . . . . 19 . . . . Projectile 62 | . 2 . 7 . . 6 6 12 5 . 24 AOE 108 | . . . . . . 108 . . . . . Terrain Rammed . | . . . . . . . . . . . . Walls Destroyed . | . . . . . . . . . . . . Machines Disabled . | . . . . . . . . . . . . Actions | -11 -10 -9 -9 -9 -8 -8 -7 -7 -7 -7 -6 --------- Run | Yrd Mat Mat Min Exi Min Mat Fac Low Low Dat Pro Total 5790 | 35 1353 328 312 226 279 844 1206 315 524 107 261 Wait 474 | . 165 . 22 . 2 53 198 13 . . 21 Move 4784 | 22 1023 298 262 222 273 694 909 273 506 103 199 Hop 7 | . . . 3 . 1 3 . . . . . Pick Up 85 | 2 22 5 1 2 . 20 27 3 2 . 1 Fast Attach 9 | . 1 2 . . . 2 . . 2 2 . Attach 44 | 1 5 8 2 . . 15 5 . 1 . 7 Detach 7 | . . 3 1 . . 1 . . . . 2 Swap 45 | . 17 4 1 . 2 3 11 . 4 . 3 Drop 58 | . 14 8 2 2 1 11 11 3 4 2 . Fire 186 | 10 106 . 18 . . 13 3 8 5 . 23 Melee 90 | . . . . . . 29 42 14 . . 5 Ram . | . . . . . . . . . . . . Kick . | . . . . . . . . . . . . Crush . | . . . . . . . . . . . . Escape Stasis . | . . . . . . . . . . . . Rewire . | . . . . . . . . . . . . Trap . | . . . . . . . . . . . . Miscellaneous 1 | . . . . . . . . 1 . . . Route ------- -11/Scrapyard -10/Materials (discovered 5 exits: *Mat x3 / [*Min] / *Sub) -9/Materials (discovered 2 exits: *Min x2) -9/Mines (discovered 2 exits: *Mat / *Exi) -9/Exiles -8/Mines -8/Materials -7/Factory (discovered 2 exits: [*Fac] / [*Low]) -7/Lower Caves -7/Lower Caves -7/Data Miner -6/Proximity Caves History --------- Turn | Location | Event 28 | -11/Scrapyard | Discovered new exit (range 3) 57 | -11/Scrapyard | Entered Materials 287 | -10/Materials | Discovered new exit (range 7) 309 | -10/Materials | Build established: Mutant 480 | -10/Materials | Discovered new exit (range 16) 656 | -10/Materials | Discovered new exit (range 9) 840 | -10/Materials | Repaired Lgt. Armor Plating 1047 | -10/Materials | Core integrity fell below 50% 1158 | -10/Materials | Discovered new exit (range 10) 1167 | -10/Materials | Identified exit to Subcaves 1229 | -10/Materials | Loaded intel: 1 recycling unit location 1242 | -10/Materials | Learned Storage security intel 1245 | -10/Materials | Learned location of Storage (-8) 1250 | -10/Materials | Learned 4 Subcaves zone layouts 1266 | -10/Materials | Learned location of Recycling (-8) 1294 | -10/Materials | Learned location of 2 exits from Mines 1457 | -10/Materials | Repaired Lgt. Treads 2221 | -10/Materials | Entered another Materials area 2221 | -9/Materials | Evolved 2 slots: Propulsion x2 2298 | -9/Materials | Discovered new exit (range 16) 2376 | -9/Materials | Discovered new exit (range 16) 2382 | -9/Materials | Entered Mines 2383 | -9/Mines | Identified exit to Materials 2383 | -9/Mines | Identified exit to Exiles 2491 | -9/Mines | Found the Drone Emporium 2494 | -9/Mines | Found Prototype Device 2543 | -9/Mines | Deemed a non-threat by the Exiles lab entrance 2544 | -9/Mines | Entered Exiles 2552 | -9/Exiles | Met 8R-AWN 2557 | -9/Exiles | Met EX-HEX 2566 | -9/Exiles | Met EX-BIN 2571 | -9/Exiles | Aligned with FarCom system 2571 | -9/Exiles | Given EX-Vault access code 2579 | -9/Exiles | Opened EX-Vault 2582 | -9/Exiles | Found Potential Leg 2583 | -9/Exiles | Found Potential Leg 2591 | -9/Exiles | Warned to stay clear of 0b10 Research branches 2596 | -9/Exiles | Exiles lab attacked by MAIN.C 2602 | -9/Exiles | Build established: Sprinter 2604 | -9/Exiles | Learned location of Zion (-6) 2614 | -9/Exiles | Discovered new exit (range 10) 2616 | -9/Exiles | Left Exiles lab with Potential Leg 2616 | -9/Exiles | Entered Mines 2704 | -8/Mines | Discovered exit to Materials (range 11) 2707 | -8/Mines | Entered Materials 2707 | -8/Materials | Evolved 2 slots: Power x1, Propulsion x1 3006 | -8/Materials | Lost 3 parts (1n2w) 3058 | -8/Materials | Lost 3 parts (2p1u) 3076 | -8/Materials | Core integrity fell below 50% 3110 | -8/Materials | Lost 3 parts (3n) 3201 | -8/Materials | Build established: Mutant 3243 | -8/Materials | Discovered new exit (range 12) 3337 | -8/Materials | Entered Factory 3337 | -7/Factory | Evolved 2 slots: Weapon x2 3471 | -7/Factory | Fabricated Enh. Gauss Cannon? 4709 | -7/Factory | Build established: Assassin 4937 | -7/Factory | Discovered new exit (range 8) 5012 | -7/Factory | Discovered new exit (range 7) 5037 | -7/Factory | Build established: Mutant 5080 | -7/Factory | Cargo convoy interrupted 5268 | -7/Factory | Entered Lower Caves 5421 | -7/Lower Caves | Activated DRS Beacon 5441 | -7/Lower Caves | Learned Factory emergency access door positions 5685 | -7/Lower Caves | Discovered new exit (range 14) 5790 | -7/Lower Caves | Entered another Lower Caves area 6595 | -7/Lower Caves | Discovered new exit (range 11) 6629 | -7/Lower Caves | Entered Data Miner 6630 | -7/Data Miner | Discovered new exit (range 6) 6658 | -7/Data Miner | Met Data Miner 6694 | -7/Data Miner | Learned location of Section 7 (-2) 6722 | -7/Data Miner | Received God Mode back door access code from Data Miner 6784 | -7/Data Miner | Entered Proximity Caves 6916 | -6/Proximity Caves | Lost 7 parts (1p2n1u3w) 7352 | -6/Proximity Caves | Spotted B-75 Beast 7468 | -6/Proximity Caves | Build established: Skirmisher 9543 | -6/Proximity Caves | Core integrity fell below 50% 9562 | -6/Proximity Caves | Escorted by Enhanced Grunt 9562 | -6/Proximity Caves | Core integrity fell below 20% 9568 | -6/Proximity Caves | Destroyed by S-27 Virus with Autogun Last Messages --------------- 09485_ Coil Gun destroyed. 09492_ Knocked back. 09512_ Acquired 1 matter. 09514_ Acquired 5 matter. 09519_ Acquired 4 matter. 09520_ Broken Greatsword destroyed. 09520_ Coil Gun destroyed. 09524_ Acquired 7 matter. 09529_ Acquired 20 matter. 09533_ Acquired Wheel. 09540_ Acquired 5 matter. 09545_ HV Slug penetrates Wall. 09546_ S-27 Virus misfires. 09547_ Wheel destroyed. 09548_ HV Slug penetrates Wall. 09550_ Hyp. Coil Gun destroyed. 09551_ Mic. Fission Core destroyed. 09551_ Imp. Light Armor Plating destroyed. 09553_ Proton Missile Launcher destroyed. 09562_ Enhanced Grunt: "Protecting LRC-V3." Map ----- +----------------------------------------------------+ | ?????????????????????????????????????????????????? | | ?????????????????????????????????????????????????? | | ?????????????????????????????????????????????????? | | ?????????????????????????????????????????????????? | | ?????????????????????????????????????????????????? | | ?????????????????????????????????????????????????? | | ????#????????????????????????????????????????????? | | ?????????????????????????????????????????????????? | | ?????????????????????????????????????????????????? | | ? ???????????????????????????????????????????????? | | ? ???????????????????????????????????????????????? | | ?? ?????????????????????????????????????????????? | | ?????????????????????####????? ????????????????? | | ?????????????????????# #???? ???????????????? | | ?????????????????????# ??? #???????????????? | | ?????????#???????????# ??? #???????????????? | | ??????? ??????????? ??# ##??????????????? | | ??##?# ???????????? ## #??????????????? | | ## ## ???????????? #?? #??????????? | | # #????????#??? ## ??????????? | | ###########?? ??????????? | | ## #??# s % ?????????? | | %#?## ??????????? | | =%### ss #????????????? | | #?# %## s ???????????????? | | #??# % # @%%#????????????????????? | | #??## ## ## ###????????????????????? | | #### #?#% #?## #??????????????????????? | | "" ###% #???## #??????????????????????? | | % ######% #??????????????????????? | | g #??????????????????????? | | ### % % % #??????????????????????? | | ##?## #####;# ;?#????????????????????? | | ##???##%% #???### #?#???????????????????? | | #?????# %##????% #??????? ????????????? | | % #?????#% #????? %###????????????????????? | | # %% #?????# #????? #??????????????????????? | | #"## #????? %% #????? #??????????????????????? | | ###### #????% #????? ??????????????????????? | | ?##??#####??? #?????## ??????????????????????? | | ??#???????#? % ##???????#??????????????????????? | | ??#???#??#?? ##???????????????????????????????? | | ???????????## ##?????????????????#???????????????? | | ?#??#???????##???????????????????????????????????? | | ???##????????????????????????????????????????????? | | ??????????????????????????#??????????????????????? | | ????#????????????????????????????????????????????? | | ??#??????????????????????????????????????????????? | | ??#??????????????????????????????????????????????? | | ?????????????????????????????????????????????????? | +----------------------------------------------------+ Best States ------------- Heat Dissipation 34 Energy Generation 26 Energy Capacity 340 Matter Stores 300 Matter Capacity 300 Sight Range 16 Terrain Scan Range 16 Terrain Scan Density 10 ECM Strength 1 Armor Coverage 150 Resistance: TH 10 Resistance: EM 15 Evasion (%) 63 Recoil Reduction 2 Item Schematics ----------------- Huge Storage Unit | -8/Materials | Scanalyzed Combat Drone Bay | -7/Data Miner | Free Lgt. Regenerative Plating | -7/Data Miner | Free Cld. Cesium-ion Thruster | -7/Data Miner | Free Thermal Defense Suite | -7/Data Miner | Free Linear Gravjet | -7/Data Miner | Free Imp. Heavy Laser | -7/Data Miner | Free Adv. Hacking Suite | -7/Data Miner | Free Adv. Plasma Cannon | -7/Data Miner | Free Robot Schematics ------------------ M-22 Extractor | -7/Data Miner | Free L-41 Fighter | -7/Data Miner | Free S-27 Virus | -7/Data Miner | Free G-47 Trooper | -7/Data Miner | Free H-66 Slayer | -7/Data Miner | Free Fabricated ------------ Enh. Gauss Cannon | x2 | -7/Factory | Preloaded Alien Tech Used ----------------- None Achievements -------------- None Challenges ------------ None Game ------ Seed AerolevSuperchargedCasing Manual? 0 Play Time 01:29:05 Cumulative 253.5 hours Start 2024.08.29 @ 16:45:25 End 2024.08.29 @ 18:23:10 Sessions 1 Manual Loads 0 Difficulty Rogue Special Mode None Game No. 189 Rogue 179 Adventurer 0 Explorer 10 Win Type - Total 3 Types 3/0/0/0/0/0/0/0/0 Lore% 62 Gallery% 69 Achievement% 53 Wizard Run 0 Options --------- Layout 1 ASCII 0 Keyboard 0 Movement Arrows Keybinds 1 Fullscreen 1 Font 24/Smallcaps Map View 50x35 Zoom Use 0% Tactical HUD 1 Map Filters NONE Filters NONE Steam 1 RUN: 21582384-ed97-45e6-b31f-a8fffa284c47